fUST/lending_fUST_20240405
["ID","MTS","AMOUNT","RATE_DAILY","PERIOD"]
[321507873,1712261438664,-8286.41178676,0.0004013,2]
[321507875,1712261438676,-2231.27020657,0.0004013,2]
[321507877,1712261438689,-6132.34038021,0.0004013,2]
[321507879,1712261438701,-10754.78264775,0.0004013,2]
[321507881,1712261438711,-244.953602,0.00041444,120]
[321507883,1712261438722,-176.41443942,0.00042537,2]
[321507885,1712261438732,-611.0,0.00042879,2]
[321507888,1712261438743,-179.8671926,0.00043456,2]
[321507891,1712261438754,-170.262356,0.00043493,2]
[321507894,1712261438764,-635.2966834,0.00043625,4]
[321507897,1712261438774,-1023.79582093,0.00044547,4]
[321507900,1712261438785,-281.93815614,0.0004455,2]
[321507903,1712261438795,-1500.0,0.00044899,2]
[321507907,1712261438805,-2727.6478058,0.00044998,120]
[321507910,1712261438827,-2842.67125649,0.00044998,120]
[321507912,1712261438836,-216.56612219,0.00044999,4]
[321508020,1712261443741,-155.12720431,0.00044998,4]
[321508022,1712261443751,-1361.45492755,0.00044999,4]
[321508039,1712261443912,-2929.0920008,0.00044999,4]
[321508041,1712261443925,-6403.13223238,0.00044999,4]
[321508499,1712262638668,-371.67946392,0.00034846,4]
[321508501,1712262638678,-349.9734,0.00034847,4]
[321508503,1712262638687,-248.66828315,0.00034873,2]
[321508505,1712262638697,-187.99010129,0.00034875,2]
[321508507,1712262638705,-167.850574,0.00041614,120]
[321508509,1712262638714,-171.565104,0.00041756,2]
[321508511,1712262638723,-515.0,0.00041885,3]
[321508513,1712262638733,-10602.65041691,0.00041886,2]
[321508514,1712262638747,-2214.13242385,0.00041886,2]
[321508515,1712262638758,-985.47,0.00041886,2]
[321508516,1712262638769,-11097.74715924,0.00041886,2]
[321508517,1712262638779,-250.0,0.00042261,2]
[321508518,1712262638788,-174.8302704,0.00042899,2]
[321508519,1712262638797,-387.56731318,0.00044547,4]
[321508520,1712262638807,-721.61106303,0.00044998,4]
[321508521,1712262638816,-13668.93419415,0.00044999,4]
[321508556,1712262642956,-3379.25,0.00044999,4]
[321508565,1712262643039,-7713.30942957,0.00044999,4]
[321508567,1712262643048,-938.7534698,0.00045,2]
[321508590,1712262643749,-9722.19999826,0.00045,2]
[321508782,1712263837829,-155.07753877,0.00028186,2]
[321508783,1712263837839,-303.36153788,0.00028187,2]
[321508784,1712263837849,-172.182299,0.00029551,2]
[321508785,1712263837860,-400.0,0.00034071,2]
[321508786,1712263837870,-5583.7220806,0.00034072,2]
[321508787,1712263837880,-429.364605,0.00034072,2]
[321508788,1712263837889,-24900.0,0.00036862,2]
[321508789,1712263837898,-1773.8471955,0.0003739,2]
[321508790,1712263837908,-560.0,0.00037478,2]
[321508791,1712263837917,-166.93842,0.0004,2]
[321508792,1712263837926,-1059.40699269,0.00041,4]
[321508793,1712263837935,-200.267366,0.00041096,2]
[321508794,1712263837944,-783.0,0.00041226,3]
[321508795,1712263837953,-367.49767082,0.00042691,2]
[321508796,1712263837963,-166.0,0.00042749,2]
[321508797,1712263837972,-237.59747688,0.00042749,31]
[321508798,1712263837982,-390.70213506,0.00042749,31]
[321508799,1712263837991,-500.0,0.00042749,31]
[321508800,1712263838000,-500.0,0.00042749,31]
[321508801,1712263838010,-500.0,0.00042749,31]
[321508802,1712263838019,-500.0,0.00042749,31]
[321508803,1712263838028,-500.0,0.00042749,31]
[321508804,1712263838037,-500.0,0.00042749,31]
[321508805,1712263838046,-500.0,0.00042749,31]
[321508806,1712263838055,-500.0,0.00042749,31]
[321508807,1712263838065,-307.65524677,0.00042749,31]
[321508809,1712263838074,-500.0,0.00042749,31]
[321508810,1712263838083,-500.0,0.00042749,31]
[321508811,1712263838092,-500.0,0.00042749,31]
[321508813,1712263838101,-500.0,0.00042749,31]
[321508814,1712263838110,-500.0,0.00042749,31]
[321508815,1712263838120,-500.0,0.00042749,31]
[321508817,1712263838129,-21687.0069027,0.0004275,2]
[321508818,1712263838139,-252.264859,0.00042791,120]
[321508820,1712263838149,-1313.69815947,0.000428,2]
[321508821,1712263838158,-552.8863999,0.00042898,4]
[321508822,1712263838167,-377.37755632,0.000429,2]
[321508824,1712263838176,-161.0,0.00043,90]
[321508825,1712263838185,-161.0,0.00043014,90]
[321508826,1712263838195,-560.32656597,0.00043256,2]
[321508827,1712263838204,-737.799592,0.00043481,30]
[321508828,1712263838217,-199.611994,0.00043481,30]
[321508829,1712263838227,-200.267366,0.000435,2]
[321508830,1712263838237,-251.3913325,0.00043836,30]
[321508831,1712263838247,-560.32656597,0.00043863,2]
[321508832,1712263838256,-737.799592,0.00044024,30]
[321508833,1712263838266,-310.10352529,0.00044264,4]
[321508834,1712263838275,-150.395,0.00044265,2]
[321508835,1712263838284,-367.49767082,0.00044296,2]
[321508836,1712263838294,-560.32656597,0.0004447,2]
[321508837,1712263838303,-568.58920551,0.00044565,120]
[321508838,1712263838312,-500.0,0.00044565,120]
[321508839,1712263838321,-500.0,0.00044565,120]
[321508840,1712263838331,-339.51150149,0.00044565,120]
[321508841,1712263838342,-569.93403157,0.00044565,120]
[321508842,1712263838351,-500.0,0.00044565,120]
[321508843,1712263838361,-500.0,0.00044565,120]
[321508844,1712263838370,-500.0,0.00044565,120]
[321508845,1712263838379,-500.0,0.00044565,120]
[321508846,1712263838388,-500.0,0.00044565,120]
[321508847,1712263838397,-500.0,0.00044565,120]
[321508848,1712263838406,-500.0,0.00044565,120]
[321508849,1712263838415,-151.0,0.00044567,7]
[321508850,1712263838425,-151.0,0.00044567,7]
[321508851,1712263838434,-151.0,0.00044567,7]
[321508852,1712263838443,-151.0,0.00044567,7]
[321508853,1712263838452,-151.0,0.00044567,7]
[321508854,1712263838465,-737.799592,0.00044568,30]
[321508855,1712263838474,-200.70259025,0.0004467,2]
[321508856,1712263838483,-161.0,0.00044877,90]
[321508857,1712263838492,-196.48660027,0.0004491,6]
[321508858,1712263838501,-288100.7039659,0.00045,2]
[321508859,1712263838513,-9802.30616722,0.00045,2]
[321508895,1712263842877,-667.35162346,0.00045,2]
[321508896,1712263842894,-1802.01964545,0.00045,2]
[321508897,1712263842906,-2684.11548414,0.00045,2]
[321508976,1712264890123,352.501046,0.00030137,120]
[321509129,1712265046059,-157.64113523,0.00027937,2]
[321509130,1712265046076,-167.7785258,0.00028036,2]
[321509141,1712265948291,264.375784,0.00031824,120]
[321509265,1712266232441,-3712.81767264,0.00025821,2]
[321509267,1712266232450,-1074.42248555,0.00025822,2]
[321509269,1712266232459,-542.62028101,0.00025823,2]
[321509271,1712266232468,-157.64113523,0.00025836,2]
[321509273,1712266232477,-170.262356,0.0002793,2]
[321509275,1712266232486,-368.435443,0.00029724,2]
[321509277,1712266232495,-214.682302,0.00031738,2]
[321509279,1712266232508,-1011.80959258,0.00031824,4]
[321509281,1712266232517,-625.9969173,0.00032055,2]
[321509283,1712266232527,-589.84932302,0.00033611,33]
[321509285,1712266232536,-400.0,0.00033612,2]
[321509287,1712266232545,-24900.0,0.00033613,2]
[321509289,1712266232554,-382.5681279,0.00034624,7]
[321509291,1712266232563,-368.435443,0.00034724,2]
[321509293,1712266232572,-400.30780876,0.00035,2]
[321509295,1712266232581,-200.0,0.0003551,2]
[321509297,1712266232590,-560.0,0.00036973,2]
[321509299,1712266232600,-264.375784,0.00037128,120]
[321509300,1712266232610,-685.74947039,0.0003889,4]
[321509302,1712266232620,-194.03363822,0.00038891,4]
[321509304,1712266232629,-368.435443,0.00039724,2]
[321509306,1712266232639,-435.82795372,0.0003993,2]
[321509308,1712266232648,-6478.77549616,0.0004013,2]
[321509310,1712266232657,-184.0,0.00040671,3]
[321509321,1712266232757,-624.24854751,0.00041,4]
[321509323,1712266232767,-179.518844,0.00041096,2]
[321509325,1712266232776,-435.82795369,0.00041198,2]
[321509327,1712266232785,-264.375784,0.00042432,120]
[321509329,1712266232794,-435.82795369,0.00042465,2]
[321509332,1712266232803,-184.855429,0.0004271,2]
[321509334,1712266232813,-500.0,0.00042763,31]
[321509335,1712266232822,-311.96169409,0.00042763,31]
[321509337,1712266232831,-500.0,0.00042764,2]
[321509339,1712266232841,-155.20812465,0.00042764,4]
[321509341,1712266232851,-185.17273563,0.00042764,4]
[321509343,1712266232860,-241.8893831,0.00042764,2]
[321509345,1712266232870,-364.51738205,0.00042764,30]
[321509347,1712266232880,-12099.67672445,0.00042765,120]
[321509388,1712266238151,-179.518844,0.00041096,2]
[321509390,1712266238161,-1642.86430572,0.00042765,120]
[321509392,1712266238172,-642.75782907,0.0004324,15]
[321509394,1712266238181,-53.40592117,0.0004366,4]
[321509421,1712266243303,-101.73236298,0.0004366,4]
[321509422,1712266243312,-435.82795369,0.00043733,2]
[321509423,1712266243321,-400.0,0.00043836,30]
[321509424,1712266243331,-153.0,0.0004411,2]
[321509425,1712266243340,-153.0,0.0004411,2]
[321509426,1712266243349,-153.0,0.0004411,2]
[321509427,1712266243358,-202.501854,0.00044178,2]
[321509428,1712266243367,-153.0,0.00044648,2]
[321509429,1712266243376,-153.0,0.00044648,2]
[321509430,1712266243385,-144.19340759,0.00044648,2]
[321509498,1712267432340,-1443.56188078,0.00031822,4]
[321509500,1712267432351,-774.36356548,0.00031823,4]
[321509502,1712267432361,-308.82482759,0.00031824,4]
[321509504,1712267432370,-3708.68287546,0.00033611,4]
[321509505,1712267432379,-264.375784,0.00040047,120]
[321509506,1712267432389,-260.0,0.00040092,3]
[321509507,1712267432398,-245.29106669,0.00040093,2]
[321509583,1712267438385,-959.1842502,0.00040093,2]
[321509612,1712267440422,-1745.8170014,0.00040093,2]
[321509626,1712267443430,-215.86242158,0.00037993,2]
[321509627,1712267443440,-417.25553838,0.00040093,2]
[321509628,1712267443490,-6483.56907093,0.00040093,2]
[321509629,1712267443499,-214.682302,0.00040117,2]
[321509630,1712267443508,-179.518844,0.00041096,2]
[321509631,1712267443517,-170.710275,0.00042595,2]
[321509632,1712267443526,-379.01915625,0.00042595,2]
[321509633,1712267443535,-215.86242158,0.00042993,2]
[321509634,1712267443544,-161.0,0.00043,90]
[321509635,1712267443553,-153.0,0.00043597,2]
[321509636,1712267443563,-153.0,0.00043878,2]
[321509637,1712267443572,-217.91397685,0.0004399,2]
[321509638,1712267443581,-443.930738,0.00044,2]
[321509767,1712268632630,-214.56484326,0.00028084,2]
[321509769,1712268632640,-1074.42248555,0.00028085,2]
[321509771,1712268632649,-1085.5419249,0.00028085,2]
[321509772,1712268632658,-1130.37645755,0.00028086,2]
[321509774,1712268632668,-157.64113523,0.00028088,2]
[321509775,1712268632677,-239.284429,0.00037158,2]
[321509776,1712268632687,-250.0,0.00037158,2]
[321509777,1712268632697,-400.0,0.00037755,2]
[321509778,1712268632706,-400.0,0.00037755,2]
[321509779,1712268632717,-6245.4450722,0.00037756,2]
[321509780,1712268632729,-1156.86352208,0.00037756,2]
[321509781,1712268632741,-17487.69140572,0.00037756,2]
[321509782,1712268632751,-327.9155382,0.00038138,8]
[321509783,1712268632760,-1938.4665346,0.00038237,2]
[321509784,1712268632770,-209.77848772,0.00038996,2]
[321509785,1712268632779,-1102.6652475,0.00039573,2]
[321509786,1712268632789,-9740.4329818,0.00040094,2]
[321509787,1712268632799,-253.93361347,0.00041294,4]
[321509788,1712268632808,-2600.75373018,0.00041295,4]
[321509789,1712268632817,-376.21284631,0.00041531,3]
[321509790,1712268632830,-183.78715369,0.00041531,3]
[321509791,1712268632839,-494.69056253,0.00041927,2]
[321509792,1712268632849,-500.0,0.00042415,31]
[321509793,1712268632859,-243.68108808,0.00042415,31]
[321509794,1712268632868,-500.0,0.00042415,31]
[321509795,1712268632879,-520.98020948,0.00042415,31]
[321509796,1712268632889,-10907.34561822,0.00042416,2]
[321509809,1712268638571,-24787.84581254,0.00042416,2]
[321509810,1712268638581,-494.69056253,0.0004267,2]
[321509812,1712268638591,-153.0,0.00042776,2]
[321509814,1712268638601,-165.0,0.00043,90]
[321509816,1712268638610,-165.0,0.00043014,90]
[321509819,1712268638621,-153.0,0.00043256,2]
[321509820,1712268638631,-153.0,0.00043278,2]
[321509822,1712268638640,-153.0,0.00043278,2]
[321509824,1712268638650,-622.29434418,0.00043386,15]
[321509825,1712268638659,-494.69056253,0.00043414,2]
[321509826,1712268638668,-675.923992,0.00043481,30]
[321509827,1712268638678,-153.0,0.00043552,2]
[321509828,1712268638687,-153.0,0.00043552,2]
[321509829,1712268638696,-306.0,0.00043552,2]
[321509830,1712268638705,-153.0,0.00043552,2]
[321509831,1712268638714,-153.0,0.00043552,2]
[321509832,1712268638723,-153.0,0.00043597,2]
[321509833,1712268638732,-153.0,0.00043597,2]
[321509835,1712268638741,-153.0,0.00043597,2]
[321509837,1712268638750,-153.0,0.00043597,2]
[321509839,1712268638759,-209.77848772,0.00043996,2]
[321509841,1712268638768,-3772.89268184,0.00044,120]
[321509843,1712268638777,-362.17552066,0.00044,2]
[321510241,1712268646637,-11234.13340915,0.00044,2]
[321510242,1712268646646,-204.385525,0.00044,7]
[321510243,1712268646655,-235.439814,0.00044,7]
[321510244,1712268646664,-151.0,0.00044,7]
[321510245,1712268646674,-151.0,0.00044,7]
[321510246,1712268646683,-151.0,0.00044,7]
[321510247,1712268646691,-151.0,0.00044,7]
[321510248,1712268646700,-151.0,0.00044,7]
[321510249,1712268646709,-188.119426,0.00044,7]
[321510250,1712268646719,-151.0,0.00044,7]
[321510251,1712268646728,-151.0,0.00044,7]
[321510252,1712268646737,-151.0,0.00044,7]
[321510253,1712268646746,-151.0,0.00044,7]
[321510254,1712268646755,-151.0,0.00044,7]
[321510255,1712268646764,-151.0,0.00044,7]
[321510256,1712268646773,-151.0,0.00044,7]
[321510257,1712268646782,-151.0,0.00044,7]
[321510258,1712268646791,-151.0,0.00044,7]
[321510259,1712268646801,-151.0,0.00044,7]
[321510260,1712268646810,-675.923992,0.00044024,30]
[321510261,1712268646819,-153.0,0.00044078,2]
[321510262,1712268646827,-406.9732802,0.00044078,2]
[321510263,1712268646836,-153.0,0.00044078,2]
[321510264,1712268646845,-153.0,0.00044078,2]
[321510265,1712268646854,-153.0,0.00044078,2]
[321510266,1712268646862,-274.6986046,0.00044078,2]
[321510267,1712268646871,-2657.84104736,0.0004409,2]
[321510268,1712268646880,-151.0,0.0004409,7]
[321510269,1712268646889,-151.0,0.0004409,7]
[321510270,1712268646897,-234.026232,0.0004409,7]
[321510271,1712268646907,-151.0,0.0004409,7]
[321510272,1712268646916,-151.0,0.0004409,7]
[321510273,1712268646924,-151.0,0.0004409,7]
[321510274,1712268646933,-151.0,0.0004409,7]
[321510275,1712268646942,-494.69056253,0.00044157,2]
[321510276,1712268646951,-162.1431574,0.00044374,2]
[321510277,1712268646960,-153.0,0.00044374,2]
[321510278,1712268646969,-153.0,0.00044374,2]
[321510279,1712268646977,-153.0,0.00044374,2]
[321510280,1712268646986,-166.98851759,0.0004455,2]
[321510281,1712268646995,-675.923992,0.00044568,30]
[321510282,1712268647004,-4146.71244017,0.00044648,4]
[321510413,1712269832688,-1443.56188078,0.000388,4]
[321510415,1712269832699,-400.0,0.00038801,3]
[321510418,1712269832710,-400.0,0.00038801,5]
[321510420,1712269832720,-5491.22915649,0.00038802,2]
[321510422,1712269832735,-9297.83533681,0.00038802,2]
[321510424,1712269832745,-239.284428,0.00039876,2]
[321510427,1712269832756,-1052.51346966,0.00040773,2]
[321510429,1712269832765,-170.78876569,0.00040904,4]
[321510431,1712269832776,-24900.0,0.00040906,2]
[321510433,1712269832787,-560.0,0.0004144,5]
[321510435,1712269832799,-355.45870838,0.00042007,10]
[321510437,1712269832810,-159.08581481,0.00042007,2]
[321510439,1712269832821,-553.0,0.00042681,3]
[321510442,1712269832832,-159.08581479,0.0004273,2]
[321510444,1712269832842,-165.0,0.00043,90]
[321510446,1712269832852,-159.08581479,0.00043454,2]
[321510448,1712269832862,-159.08581479,0.00044177,2]
[321510450,1712269832872,-3789.249,0.000445,30]
[321510452,1712269832883,-370.34547126,0.00044647,4]
[321510454,1712269832894,-465.75299512,0.00044648,4]
[321510456,1712269832905,-330.76345676,0.000447,2]
[321510459,1712269832916,-584.0,0.000448,30]
[321510461,1712269832926,-165.0,0.00044877,90]
[321510463,1712269832937,-159.08581479,0.000449,2]
[321510465,1712269832948,-927.0,0.000449,2]
[321510467,1712269832958,-212.78089758,0.00044996,4]
[321510469,1712269832969,-205.26585827,0.00044997,4]
[321510472,1712269832979,-1083.61767282,0.00044997,4]
[321510474,1712269832990,-698.80890557,0.00044998,2]
[321510476,1712269833001,-2989.88194469,0.00044998,4]
[321510478,1712269833011,-156.16597378,0.00044998,4]
[321510480,1712269833022,-441.61683972,0.00044998,4]
[321510482,1712269833032,-210.87811955,0.00044998,4]
[321510484,1712269833043,-271.29502926,0.00044998,4]
[321510486,1712269833054,-307.27018797,0.00044998,4]
[321510489,1712269833065,-663.70788038,0.00044998,4]
[321510491,1712269833075,-413.75012232,0.00044998,4]
[321510493,1712269833086,-275.67262286,0.00044998,4]
[321510495,1712269833096,-1613.89122089,0.00044998,4]
[321510497,1712269833107,-10217.34509021,0.00044998,4]
[321510499,1712269833118,-170.96,0.00044999,7]
[321510501,1712269833126,-170.96,0.00044999,7]
[321510518,1712269833268,-170.96,0.00044999,7]
[321510520,1712269833278,-170.96,0.00044999,7]
[321510522,1712269833288,-500.0,0.00044999,120]
[321510524,1712269833299,-500.0,0.00044999,120]
[321510526,1712269833308,-167.98871321,0.00044999,120]
[321510528,1712269833317,-500.0,0.00044999,120]
[321510530,1712269833327,-500.0,0.00044999,120]
[321510532,1712269833337,-500.0,0.00044999,120]
[321510534,1712269833346,-206.29406284,0.00044999,120]
[321510536,1712269833355,-4157.51662367,0.00045,2]
[321510802,1712269843784,-330.76345674,0.000449,2]
[321510803,1712269843794,-31064.11355858,0.00045,2]
[321510808,1712269846769,-171.06946409,0.00044999,4]
[321510809,1712269846778,-1134.23872162,0.00044999,4]
[321510810,1712269846787,-15241.76586783,0.00045,2]
[321510965,1712271037811,-155.20812465,0.00028202,2]
[321510968,1712271037821,-185.17273563,0.00028202,2]
[321510969,1712271037831,-1968.46922181,0.00028204,2]
[321511107,1712271039934,-329.64373159,0.00028204,2]
[321511108,1712271039944,-1612.9037178,0.00038201,2]
[321511109,1712271039954,-400.0,0.00038231,2]
[321511110,1712271039964,-24900.0,0.00038232,2]
[321511111,1712271039975,-304.67889294,0.00038471,8]
[321511112,1712271039985,-239.284428,0.00038571,2]
[321511113,1712271039996,-364.51738205,0.00039,30]
[321511114,1712271040006,-150.36925572,0.000399,2]
[321511115,1712271040015,-200.0,0.0004,2]
[321511116,1712271040024,-12099.67672445,0.0004,120]
[321511117,1712271040034,-241.8893831,0.0004,2]
[321511118,1712271040043,-500.0,0.00040592,2]
[321511119,1712271040052,-383.0,0.00042054,3]
[321511120,1712271040062,-150.36925572,0.000424,2]
[321511121,1712271040071,-286.28087709,0.00042749,31]
[321511122,1712271040080,-500.0,0.00042749,31]
[321511123,1712271040090,-161.88821885,0.00042749,31]
[321511124,1712271040103,-500.0,0.00042749,31]
[321511125,1712271040112,-311.96169409,0.00042749,31]
[321511126,1712271040121,-40034.85356649,0.0004275,2]
[321511127,1712271040130,-169.92616257,0.000429,2]
[321511128,1712271040139,-2338.18269434,0.00044,2]
[321511155,1712271042970,-1484.99097146,0.00044,2]
[321511156,1712271042983,-507.43793105,0.00044,2]
[321511800,1712272243164,-155.08995217,0.000282,2]
[321511801,1712272243174,-1924.16122354,0.00028201,2]
[321511802,1712272243185,-1530.59047349,0.00028201,2]
[321511803,1712272243194,-2728.08146804,0.00028202,2]
[321511804,1712272243203,-184.0,0.00028203,2]
[321511805,1712272243213,-261.15333678,0.000289,4]
[321511806,1712272243222,-2446.85767936,0.00029,2]
[321511807,1712272243231,-264.3757888,0.0003768,120]
[321511808,1712272243240,-239.284428,0.00037752,2]
[321511809,1712272243249,-446.23743272,0.00040129,2]
[321511810,1712272243334,-1222.32,0.0004013,2]
[321511811,1712272243367,-166.666666,0.00041096,2]
[321511812,1712272243376,-1150.06314515,0.00041988,2]
[321511813,1712272243385,-824.96903389,0.00042087,7]
[321511814,1712272243397,-1279.83373646,0.00042087,7]
[321511815,1712272243405,-151.89015371,0.00042088,2]
[321512260,1712273438574,-310.00464994,0.00028429,2]
[321512262,1712273438584,-171.333637,0.0002843,2]
[321512264,1712273438593,-700.0,0.00036214,4]
[321512265,1712273438603,-236.09592271,0.00039987,2]
[321512266,1712273438612,-356.98994617,0.0004,2]
[321512267,1712273438623,-200.0,0.00040094,2]
[321512268,1712273438633,-550.0,0.00040238,3]
[321512270,1712273438642,-400.0,0.00040238,5]
[321512271,1712273438651,-253.53722833,0.00040238,3]
[321512455,1712273446430,-296.46277167,0.00040238,3]
[321512456,1712273446441,-24900.0,0.00040239,2]
[321512457,1712273446449,-223.84571724,0.00040479,9]
[321512458,1712273446557,-264.375784,0.0004058,120]
[321512459,1712273446567,-173.092755,0.00041096,2]
[321512460,1712273446576,-400.30780876,0.00041115,2]
[321512461,1712273446585,-1183.93459533,0.00041788,2]
[321512462,1712273446594,-5245.14270595,0.00042,30]
[321512463,1712273446603,-1183.9345953,0.00042566,2]
[321512464,1712273446612,-1183.9345953,0.00043344,2]
[321512465,1712273446623,-7070.00588214,0.0004348,4]
[321512705,1712274638405,-2111.30504374,0.00038613,2]
[321512706,1712274638415,-400.0,0.00038614,3]
[321512707,1712274638424,-155.02015262,0.00038614,4]
[321512708,1712274638433,-246.91176174,0.00038615,2]
[321512842,1712274646518,-10161.68135226,0.00038615,2]
[321512843,1712274646527,-191.86775766,0.000399,9]
[321512844,1712274646537,-249.09730767,0.000399,2]
[321512846,1712274646546,-518.40533212,0.000399,2]
[321512847,1712274646556,-500.0,0.00039983,2]
[321512848,1712274646565,-27410.03551627,0.00039984,2]
[321512849,1712274646578,-12624.81805022,0.00039984,2]
[321512850,1712274646588,-356.98994617,0.0004,2]
[321512851,1712274646597,-173.092755,0.00041096,2]
[321512852,1712274646606,-518.40533209,0.0004115,2]
[321512853,1712274646616,-157.39728181,0.0004138,2]
[321512854,1712274646627,-249.09730767,0.000424,2]
[321512855,1712274646636,-518.40533209,0.000424,2]
[321512856,1712274646645,-410.0,0.00042475,3]
[321512857,1712274646656,-153.0,0.00042696,2]
[321512858,1712274646666,-155.49227895,0.00043479,4]
[321512859,1712274646675,-723.14067091,0.0004348,4]
[321513105,1712275832629,-356.98994617,0.00040127,2]
[321513106,1712275832639,-1331.67900737,0.00040128,4]
[321513108,1712275832648,-400.0,0.00040129,5]
[321513110,1712275832657,-8937.18549616,0.0004013,2]
[321513111,1712275832667,-384.73512005,0.0004348,2]
[321513112,1712275832676,-4146.71244017,0.0004348,4]
[321513113,1712275832685,-270.369597,0.00043481,30]
[321513114,1712275832694,-648.914733,0.00043481,30]
[321513115,1712275832702,-961.468786,0.00043481,30]
[321513116,1712275832711,-819.491752,0.00043481,30]
[321513117,1712275832721,-202.501854,0.000435,2]
[321513118,1712275832730,-202.501854,0.000435,2]
[321513119,1712275832740,-202.501854,0.000435,2]
[321513120,1712275832749,-202.501854,0.000435,2]
[321513121,1712275832759,-202.501854,0.000435,2]
[321513122,1712275832768,-202.501854,0.000435,2]
[321513123,1712275832778,-202.501854,0.000435,2]
[321513124,1712275832788,-202.501854,0.000435,2]
[321513125,1712275832798,-153.0,0.000435,2]
[321513126,1712275832807,-306.0,0.000435,2]
[321513127,1712275832817,-406.9732802,0.000435,2]
[321513128,1712275832826,-274.6986046,0.000435,2]
[321513129,1712275832836,-153.0,0.000435,2]
[321513130,1712275832846,-164.45807796,0.000435,11]
[321513131,1712275832855,-153.0,0.000435,2]
[321513132,1712275832864,-153.0,0.000435,2]
[321513133,1712275832873,-153.0,0.00043518,2]
[321513134,1712275832883,-202.501854,0.000436,2]
[321513135,1712275832892,-202.501854,0.000436,2]
[321513136,1712275832901,-202.501854,0.000436,2]
[321513137,1712275832913,-153.0,0.000436,2]
[321513138,1712275832922,-153.0,0.000436,2]
[321513139,1712275832931,-202.501854,0.000436,2]
[321513140,1712275832940,-202.501854,0.000436,2]
[321513141,1712275832949,-153.0,0.000436,2]
[321513142,1712275832959,-202.501854,0.000436,2]
[321513143,1712275832968,-202.501854,0.000436,2]
[321513144,1712275832978,-202.501854,0.000436,2]
[321513145,1712275832989,-202.501854,0.000436,2]
[321513146,1712275832998,-202.501854,0.000436,2]
[321513147,1712275833007,-153.0,0.000436,2]
[321513148,1712275833016,-202.501854,0.000437,2]
[321513149,1712275833026,-510.56934701,0.00043836,30]
[321513150,1712275833035,-207.36213286,0.00043924,2]
[321513151,1712275833044,-3042.72770378,0.00044,2]
[321513152,1712275833056,-7225.41491439,0.00044,2]
[321513153,1712275833067,-270.369597,0.00044024,30]
[321513154,1712275833076,-648.914733,0.00044024,30]
[321513155,1712275833085,-961.468786,0.00044024,30]
[321513156,1712275833094,-819.491752,0.00044024,30]
[321513157,1712275833104,-583.0,0.000441,30]
[321513158,1712275833114,-207.36213283,0.00044168,2]
[321513159,1712275833123,-207.36213283,0.00044412,2]
[321513160,1712275833132,-387.56731318,0.00044548,4]
[321513161,1712275833142,-166.98851759,0.0004455,2]
[321513162,1712275833151,-270.369597,0.00044568,30]
[321513163,1712275833161,-648.914733,0.00044568,30]
[321513164,1712275833170,-961.468786,0.00044568,30]
[321513165,1712275833179,-819.491752,0.00044568,30]
[321513166,1712275833189,-207.36213283,0.00044656,2]
[321513167,1712275833198,-487.4018791,0.0004488,15]
[321513168,1712275833208,-204.385525,0.0004488,7]
[321513169,1712275833217,-235.439814,0.0004488,7]
[321513170,1712275833227,-151.0,0.0004488,7]
[321513171,1712275833238,-201.033524,0.0004488,7]
[321513172,1712275833247,-201.033524,0.0004488,7]
[321513173,1712275833257,-151.0,0.0004488,7]
[321513174,1712275833266,-188.119426,0.0004488,7]
[321513175,1712275833276,-151.0,0.0004488,7]
[321513176,1712275833288,-151.0,0.0004488,7]
[321513177,1712275833297,-151.0,0.0004488,7]
[321513178,1712275833306,-151.0,0.0004488,7]
[321513179,1712275833315,-151.0,0.0004488,7]